[Event "ESP-chT 1st Division 2020"]
[Site "Padron"]
[Date "2020.10.03"]
[Round "1.19"]
[White "Suarez Gomez, Julio"]
[Black "Pile, Richard"]
[Result "1-0"]
[ECO "E11"]
[WhiteElo "2426"]
[BlackElo "2450"]
[Annotator "ChessBase"]
[PlyCount "103"]
[EventDate "2020.10.01"]
[EventType "team-tourn"]
[EventCountry "ESP"]
[SourceTitle "playchess.com"]
[Source "ChessBase"]
[SourceQuality "1"]
[TimeControl "5400+30"]

1. d4 {[%emt 0:00:00]} Nf6 {[%emt 0:00:00]} 2. Nf3 {[%emt 0:00:10]} e6 {[%emt 0:00:00]} 3. c4 {[%emt 0:01:29]} Bb4+ {[%emt 0:00:45]} 4. Bd2 {[%emt 0:01:19]} a5 {[%emt 0:00:13]} 5. g3 {[%emt 0:01:20]} b6 {[%emt 0:00:05]} 6. Bg2 {[%emt 0:00:47]} Bb7 {[%emt 0:00:05]} 7. O-O {[%emt 0:00:45]} O-O {[%emt 0:00:20]} 8. Bf4 {[%emt 0:05:25]} Be7 {[%emt 0:00:28]} 9. Nc3 {[%emt 0:01:16]} Ne4 {[%emt 0:00:30]} 10. Na4 {[%emt 0:04:50]} d5 {[%emt 0:18:48]} 11. cxd5 {[%emt 0:09:09]} exd5 {[%emt 0:00:27]} 12. Rc1 {[%emt 0:00:25]} Bd6 {[%emt 0:00:09]} 13. Ne5 {[%emt 0:06:52]} Qe8 {[%emt 0:21:39]} 14. Nc3 {[%emt 0:10:26]} Na6 {[%emt 0:01:50]} 15. a3 {[%emt 0:11:48]} Rd8 {[%emt 0:05:30]} 16. Nd3 {[%emt 0:15:06]} c5 {[%emt 0:16:41]} 17. Bxd6 {[%emt 0:02:55]} Rxd6 {[%emt 0:00:13]} 18. Nf4 {[%emt 0:01:25]} g5 {[%emt 0:02:46]} 19. dxc5 {[%emt 0:07:20]} Naxc5 {[%emt 0:00:17]} 20. Nd3 {[%emt 0:03:02]} Ne6 {[%emt 0:04:00]} 21. Ne5 {[%emt 0:04:11]} Qe7 {[%emt 0:00:07]} 22. Nb5 {[%emt 0:00:17]} Rdd8 {[%emt 0:01:03]} 23. Nd4 {[%emt 0:01:50]} Nxd4 {[%emt 0:04:34]} 24. Qxd4 {[%emt 0:00:06]} Rd6 {[%emt 0:00:13]} 25. b4 {[%emt 0:03:46]} axb4 {[%emt 0:00:32]} 26. axb4 {[%emt 0:00:04]} Re8 {[%emt 0:02:11]} 27. Ng4 {[%emt 0:01:54]} h5 {[%emt 0:11:14]} 28. Ne3 {[%emt 0:00:17]} Qf6 {[%emt 0:00:45]} 29. Qxf6 {[%emt 0:00:25]} Rxf6 {[%emt 0:00:18]} 30. Rc7 {[%emt 0:01:37]} d4 {[%emt 0:00:09]} 31. Nc2 {[%emt 0:01:12]} Rc6 {[%emt 0:04:25]} 32. Rxc6 {[%emt 0:00:10]} Bxc6 {[%emt 0:00:06]} 33. Nxd4 {[%emt 0:00:05]} Bd7 {[%emt 0:00:03]} 34. Rc1 {[%emt 0:00:45]} Nf6 {[%emt 0:00:55]} 35. e3 {[%emt 0:00:17]} h4 {[%emt 0:00:12]} 36. gxh4 {[%emt 0:02:21]} gxh4 {[%emt 0:00:04]} 37. h3 {[%emt 0:00:16]} Kf8 {[%emt 0:00:15]} 38. Rc7 {[%emt 0:01:00]} Re5 {[%emt 0:00:12]} 39. Kh2 {[%emt 0:00:47]} Ke8 {[%emt 0:00:27]} 40. Rb7 {[%emt 0:00:23]} b5 {[%emt 0:00:09]} 41. Rb6 {[%emt 0:01:10]} Ke7 {[%emt 0:01:05]} 42. Bc6 {[%emt 0:00:35]} Rg5 {[%emt 0:02:09]} 43. Bxd7 {[%emt 0:00:21]} Nxd7 {[%emt 0:00:09]} 44. Rxb5 {[%emt 0:00:12]} Rg6 {[%emt 0:00:09]} 45. Rh5 {[%emt 0:00:32]} Ra6 {[%emt 0:00:06]} 46. Rxh4 {[%emt 0:00:32]} Ra2 {[%emt 0:00:05]} 47. Kg2 {[%emt 0:00:40]} Nf6 {[%emt 0:00:08]} 48. b5 {[%emt 0:00:24]} Rb2 {[%emt 0:00:06]} 49. Kf3 {[%emt 0:00:28]} Nd7 {[%emt 0:00:06]} 50. Rh5 {[%emt 0:00:51]} f6 {[%emt 0:00:12]} 51. Kg3 {[%emt 0:00:14]} Ne5 {[%emt 0:00:10]} 52. Nc6+ {[%emt 0:00:08]} 1-0

[Event "ESP-chT 1st Division 2020"]
[Site "Padron"]
[Date "2020.10.03"]
[Round "1.20"]
[White "Hernando Rodrigo, Julio Antonio"]
[Black "Reinaldo Castineira, Roi"]
[Result "0-1"]
[ECO "C02"]
[WhiteElo "2266"]
[BlackElo "2469"]
[Annotator "ChessBase"]
[PlyCount "106"]
[EventDate "2020.10.01"]
[EventType "team-tourn"]
[EventCountry "ESP"]
[SourceTitle "playchess.com"]
[Source "ChessBase"]
[SourceQuality "1"]
[TimeControl "5400+30"]

1. d4 {[%emt 0:00:00]} e6 {[%emt 0:00:00]} 2. e4 {[%emt 0:00:00]} d5 {[%emt 0:00:12]} 3. e5 {[%emt 0:00:10]} c5 {[%emt 0:00:44]} 4. c3 {[%emt 0:00:11]} Nc6 {[%emt 0:00:23]} 5. Nf3 {[%emt 0:00:06]} Bd7 {[%emt 0:01:49]} 6. a3 {[%emt 0:01:40]} f6 {[%emt 0:05:50]} 7. Bd3 {[%emt 0:01:29]} fxe5 {[%emt 0:02:38]} 8. dxe5 {[%emt 0:00:08]} Qc7 {[%emt 0:00:11]} 9. O-O {[%emt 0:03:01]} O-O-O {[%emt 0:04:13]} 10. Qe2 {[%emt 0:04:07]} c4 {[%emt 0:07:57]} 11. Bc2 {[%emt 0:00:12]} Bc5 {[%emt 0:00:23]} 12. b3 {[%emt 0:22:50]} cxb3 {[%emt 0:10:32]} 13. Bxb3 {[%emt 0:02:51]} Na5 {[%emt 0:05:09]} 14. Bc2 {[%emt 0:00:49]} Ne7 {[%emt 0:01:12]} 15. a4 {[%emt 0:09:22]} Kb8 {[%emt 0:10:43]} 16. Na3 {[%emt 0:01:10]} a6 {[%emt 0:00:51]} 17. Bd2 {[%emt 0:06:33]} Rc8 {[%emt 0:02:48]} 18. Rfb1 {[%emt 0:05:04]} Ka8 {[%emt 0:01:35]} 19. Bd3 {[%emt 0:01:35]} Rhf8 {[%emt 0:03:36]} 20. Kh1 {[%emt 0:21:07]} Nf5 {[%emt 0:06:10]} 21. Be1 {[%emt 0:06:14]} h6 {[%emt 0:05:57]} 22. Qb2 {[%emt 0:02:48]} Bxa3 {[%emt 0:08:53]} 23. Qxa3 {[%emt 0:01:18]} Nc4 {[%emt 0:00:02]} 24. Qb4 {[%emt 0:01:38]} Bc6 {[%emt 0:00:24]} 25. Nd4 {[%emt 0:01:26]} Nxd4 {[%emt 0:10:55]} 26. cxd4 {[%emt 0:00:06]} g5 {[%emt 0:00:50]} 27. Ra2 {[%emt 0:02:55]} Rf4 {[%emt 0:00:34]} 28. f3 {[%emt 0:04:15]} g4 {[%emt 0:08:12]} 29. Bg3 {[%emt 0:00:09]} Rxd4 {[%emt 0:00:41]} 30. Qc3 {[%emt 0:00:13]} Rxd3 {[%emt 0:00:40]} 31. Qxd3 {[%emt 0:00:05]} gxf3 {[%emt 0:00:08]} 32. Qxf3 {[%emt 0:00:19]} Qh7 {[%emt 0:01:09]} 33. Re1 {[%emt 0:02:05]} d4 {[%emt 0:00:32]} 34. Qf4 {[%emt 0:00:30]} d3 {[%emt 0:00:32]} 35. Kg1 {[%emt 0:00:25]} d2 {[%emt 0:00:29]} 36. Rxd2 {[%emt 0:00:09]} Nxd2 {[%emt 0:00:13]} 37. Qxd2 {[%emt 0:00:03]} Qg6 {[%emt 0:00:29]} 38. Rc1 {[%emt 0:00:55]} h5 {[%emt 0:00:47]} 39. Qc2 {[%emt 0:00:59]} Qg5 {[%emt 0:00:12]} 40. Re1 {[%emt 0:00:29]} h4 {[%emt 0:00:12]} 41. Qc1 {[%emt 0:00:31]} Qxc1 {[%emt 0:00:09]} 42. Rxc1 {[%emt 0:00:02]} hxg3 {[%emt 0:00:06]} 43. hxg3 {[%emt 0:00:06]} Rg8 {[%emt 0:00:05]} 44. Kf2 {[%emt 0:00:26]} Bxa4 {[%emt 0:00:06]} 45. Rc4 {[%emt 0:00:07]} Bc6 {[%emt 0:00:07]} 46. g4 {[%emt 0:00:06]} Bd5 {[%emt 0:00:33]} 47. Rd4 {[%emt 0:00:07]} b5 {[%emt 0:00:22]} 48. Kg3 {[%emt 0:00:03]} a5 {[%emt 0:00:12]} 49. Kh4 {[%emt 0:00:04]} Kb7 {[%emt 0:00:47]} 50. g5 {[%emt 0:00:07]} b4 {[%emt 0:00:11]} 51. Kh5 {[%emt 0:00:12]} b3 {[%emt 0:00:09]} 52. Kh6 {[%emt 0:00:27]} b2 {[%emt 0:00:16]} 53. Rd1 {[%emt 0:00:09]} Be4 {[%emt 0:00:29]} 0-1

[Event "ESP-chT 1st Division 2020"]
[Site "Padron"]
[Date "2020.10.03"]
[Round "1.21"]
[White "Laiz Ibanez, Hector"]
[Black "Hernando Rodrigo, Jose Maria"]
[Result "1/2-1/2"]
[ECO "B23"]
[WhiteElo "2318"]
[BlackElo "2311"]
[Annotator "ChessBase"]
[PlyCount "70"]
[EventDate "2020.10.01"]
[EventType "team-tourn"]
[EventCountry "ESP"]
[SourceTitle "playchess.com"]
[Source "ChessBase"]
[SourceQuality "1"]
[TimeControl "5400+30"]

1. e4 {[%emt 0:00:00]} c5 {[%emt 0:00:00]} 2. Nc3 {[%emt 0:00:39]} e6 {[%emt 0:03:07]} 3. Nf3 {[%emt 0:00:25]} d5 {[%emt 0:00:54]} 4. exd5 {[%emt 0:00:56]} exd5 {[%emt 0:00:06]} 5. Bb5+ {[%emt 0:03:25]} Nc6 {[%emt 0:02:41]} 6. d4 {[%emt 0:16:51]} Nf6 {[%emt 0:26:05]} 7. O-O {[%emt 0:09:28]} Be7 {[%emt 0:03:14]} 8. dxc5 {[%emt 0:02:19]} O-O {[%emt 0:00:59]} 9. Be3 {[%emt 0:08:02]} Bg4 {[%emt 0:07:51]} 10. h3 {[%emt 0:10:42]} d4 {[%emt 0:09:17]} 11. Bxc6 {[%emt 0:03:16]} dxe3 {[%emt 0:00:08]} 12. Bxb7 {[%emt 0:04:45]} exf2+ {[%emt 0:00:17]} 13. Kh1 {[%emt 0:03:26]} Bxc5 {[%emt 0:15:17]} 14. Qxd8 {[%emt 0:10:10]} Raxd8 {[%emt 0:00:10]} 15. hxg4 {[%emt 0:00:13]} Rb8 {[%emt 0:02:52]} 16. Ne4 {[%emt 0:02:39]} Rxb7 {[%emt 0:04:49]} 17. Nxc5 {[%emt 0:00:04]} Rxb2 {[%emt 0:00:11]} 18. Rxf2 {[%emt 0:00:29]} Rb5 {[%emt 0:00:50]} 19. Nb3 {[%emt 0:12:13]} Ne4 {[%emt 0:00:41]} 20. Kg1 {[%emt 0:00:04]} Nxf2 {[%emt 0:00:19]} 21. Kxf2 {[%emt 0:00:03]} Rb4 {[%emt 0:02:51]} 22. Nbd4 {[%emt 0:01:27]} Rc8 {[%emt 0:01:02]} 23. Ke2 {[%emt 0:00:48]} Ra4 {[%emt 0:06:24]} 24. Kd2 {[%emt 0:01:32]} a6 {[%emt 0:00:27]} 25. a3 {[%emt 0:01:13]} Kf8 {[%emt 0:01:13]} 26. g5 {[%emt 0:01:53]} Rc5 {[%emt 0:02:54]} 27. Rh1 {[%emt 0:03:23]} Rxa3 {[%emt 0:02:50]} 28. Rxh7 {[%emt 0:00:07]} Rd5 {[%emt 0:01:43]} 29. Rh8+ {[%emt 0:02:37]} Ke7 {[%emt 0:00:06]} 30. Ra8 {[%emt 0:00:23]} Rxf3 {[%emt 0:00:24]} 31. Ra7+ {[%emt 0:00:35]} Ke8 {[%emt 0:01:21]} 32. gxf3 {[%emt 0:00:08]} Rxd4+ {[%emt 0:00:07]} 33. Ke3 {[%emt 0:00:35]} Rc4 {[%emt 0:00:31]} 34. Kd3 {[%emt 0:00:49]} Rf4 {[%emt 0:00:39]} 35. Ke3 {[%emt 0:01:00]} Rc4 1/2-1/2

[Event "ESP-chT 1st Division 2020"]
[Site "Padron"]
[Date "2020.10.03"]
[Round "1.22"]
[White "Korneev Leskova, Svyatoslav"]
[Black "Abal Cores, Lucas"]
[Result "0-1"]
[ECO "A89"]
[WhiteElo "2170"]
[BlackElo "2315"]
[Annotator "ChessBase"]
[PlyCount "84"]
[EventDate "2020.10.01"]
[EventType "team-tourn"]
[EventCountry "ESP"]
[SourceTitle "playchess.com"]
[Source "ChessBase"]
[SourceQuality "1"]
[TimeControl "5400+30"]

1. c4 {[%emt 0:00:00]} f5 {[%emt 0:00:00]} 2. Nf3 {[%emt 0:00:00]} Nf6 {[%emt 0:00:00]} 3. Nc3 {[%emt 0:00:10]} d6 {[%emt 0:01:03]} 4. d4 {[%emt 0:00:16]} g6 {[%emt 0:00:15]} 5. g3 {[%emt 0:00:14]} Bg7 {[%emt 0:00:27]} 6. Bg2 {[%emt 0:00:18]} O-O {[%emt 0:00:20]} 7. O-O {[%emt 0:00:05]} Nc6 {[%emt 0:00:43]} 8. d5 {[%emt 0:00:19]} Ne5 {[%emt 0:00:05]} 9. Nxe5 {[%emt 0:00:49]} dxe5 {[%emt 0:00:05]} 10. c5 {[%emt 0:00:45]} Kh8 {[%emt 0:03:09]} 11. Qa4 {[%emt 0:05:39]} Bd7 {[%emt 0:13:30]} 12. Qa3 {[%emt 0:15:54]} c6 {[%emt 0:16:02]} 13. Rd1 {[%emt 0:04:33]} cxd5 {[%emt 0:00:47]} 14. Nxd5 {[%emt 0:00:18]} Bc6 {[%emt 0:03:53]} 15. Nc3 {[%emt 0:01:37]} Qc7 {[%emt 0:01:13]} 16. Bxc6 {[%emt 0:04:16]} Qxc6 {[%emt 0:06:31]} 17. b4 {[%emt 0:06:54]} f4 {[%emt 0:01:30]} 18. gxf4 {[%emt 0:17:39]} exf4 {[%emt 0:00:31]} 19. Bxf4 {[%emt 0:03:02]} Ne4 {[%emt 0:08:54]} 20. Nxe4 {[%emt 0:00:31]} Rxf4 {[%emt 0:03:24]} 21. f3 {[%emt 0:02:14]} Raf8 {[%emt 0:06:53]} 22. Qd3 {[%emt 0:12:33]} Rh4 {[%emt 0:05:37]} 23. Rab1 {[%emt 0:05:49]} Qc7 {[%emt 0:04:18]} 24. Ng3 {[%emt 0:01:10]} Be5 {[%emt 0:05:07]} 25. Kg2 {[%emt 0:00:11]} Qc6 {[%emt 0:03:20]} 26. Qd5 {[%emt 0:06:12]} Qf6 {[%emt 0:00:48]} 27. Rg1 {[%emt 0:07:48]} Qg5 {[%emt 0:05:10]} 28. Rbd1 {[%emt 0:01:22]} Rxb4 {[%emt 0:03:15]} 29. Rdf1 {[%emt 0:02:02]} Rd4 {[%emt 0:03:00]} 30. Qxb7 {[%emt 0:00:55]} Rh4 {[%emt 0:00:08]} 31. Rd1 {[%emt 0:01:08]} Qe3 {[%emt 0:03:43]} 32. Rdf1 {[%emt 0:00:22]} Qxc5 {[%emt 0:00:24]} 33. Qd7 {[%emt 0:00:50]} Qe3 {[%emt 0:00:18]} 34. Qd3 {[%emt 0:00:23]} Qh6 {[%emt 0:00:27]} 35. Rh1 {[%emt 0:00:04]} Qg5 {[%emt 0:00:03]} 36. f4 {[%emt 0:00:36]} Rhxf4 {[%emt 0:01:34]} 37. Rxf4 {[%emt 0:00:06]} Rxf4 {[%emt 0:00:05]} 38. Qe3 {[%emt 0:00:27]} Bd4 {[%emt 0:01:14]} 39. Qc1 {[%emt 0:01:10]} Qd5+ {[%emt 0:01:04]} 40. e4 {[%emt 0:00:38]} Rf2+ {[%emt 0:00:09]} 41. Kh3 {[%emt 0:00:20]} Qe6+ {[%emt 0:00:34]} 42. Kh4 {[%emt 0:00:18]} Bf6+ 0-1

[Event "ESP-chT 1st Division 2020"]
[Site "Padron"]
[Date "2020.10.03"]
[Round "1.23"]
[White "Rodriguez Ferreiros, Andres"]
[Black "Almeida Sanchez, Ciriaco"]
[Result "1-0"]
[ECO "C89"]
[WhiteElo "2133"]
[BlackElo "1872"]
[Annotator "ChessBase"]
[PlyCount "71"]
[EventDate "2020.10.01"]
[EventType "team-tourn"]
[EventCountry "ESP"]
[SourceTitle "playchess.com"]
[Source "ChessBase"]
[SourceQuality "1"]
[TimeControl "5400+30"]

1. e4 {[%emt 0:00:00]} e5 {[%emt 0:00:00]} 2. Nf3 {[%emt 0:00:00]} Nc6 {[%emt 0:00:00]} 3. Bb5 {[%emt 0:00:00]} a6 {[%emt 0:00:36]} 4. Ba4 {[%emt 0:00:00]} Nf6 {[%emt 0:00:43]} 5. O-O {[%emt 0:00:15]} b5 {[%emt 0:00:18]} 6. Bb3 {[%emt 0:00:06]} Be7 {[%emt 0:00:13]} 7. Re1 {[%emt 0:00:26]} O-O {[%emt 0:00:58]} 8. c3 {[%emt 0:01:55]} d5 {[%emt 0:01:15]} 9. exd5 {[%emt 0:01:06]} Nxd5 {[%emt 0:00:20]} 10. Nxe5 {[%emt 0:00:17]} Nxe5 {[%emt 0:00:56]} 11. Rxe5 {[%emt 0:00:04]} c6 {[%emt 0:00:51]} 12. d3 {[%emt 0:12:46]} Bd6 {[%emt 0:00:10]} 13. Rh5 {[%emt 0:00:11]} Nf4 {[%emt 0:10:25]} 14. Bxf4 {[%emt 0:02:26]} Bxf4 {[%emt 0:00:08]} 15. Qf3 {[%emt 0:10:42]} Bc1 {[%emt 0:24:12]} 16. a4 {[%emt 0:01:52]} Qe7 {[%emt 0:07:21]} 17. Qe4 {[%emt 0:34:05]} Qxe4 {[%emt 0:00:21]} 18. dxe4 {[%emt 0:00:05]} Re8 {[%emt 0:05:21]} 19. Bc2 {[%emt 0:07:52]} f5 {[%emt 0:04:45]} 20. axb5 {[%emt 0:04:45]} g6 {[%emt 0:07:22]} 21. Rh4 {[%emt 0:05:46]} Bg5 {[%emt 0:03:33]} 22. Rh3 {[%emt 0:00:38]} fxe4 {[%emt 0:00:22]} 23. Rg3 {[%emt 0:01:29]} Bf4 {[%emt 0:01:07]} 24. bxc6 {[%emt 0:01:59]} Bxg3 {[%emt 0:00:33]} 25. hxg3 {[%emt 0:00:04]} Bf5 {[%emt 0:01:19]} 26. Na3 {[%emt 0:01:58]} e3 {[%emt 0:01:49]} 27. fxe3 {[%emt 0:01:42]} Rxe3 {[%emt 0:08:36]} 28. Nc4 {[%emt 0:00:57]} Re7 {[%emt 0:06:16]} 29. Bxf5 {[%emt 0:01:14]} gxf5 {[%emt 0:00:42]} 30. b4 {[%emt 0:01:22]} Raa7 {[%emt 0:08:55]} 31. Kf2 {[%emt 0:01:48]} Kg7 {[%emt 0:01:07]} 32. Ra5 {[%emt 0:01:25]} Kf6 {[%emt 0:02:17]} 33. Nb6 {[%emt 0:01:33]} Kg5 34. Nc8 {[%emt 0:00:24]} Rec7 {[%emt 0:03:36]} 35. Nxa7 {[%emt 0:00:09]} Rxa7 {[%emt 0:00:00]} 36. b5 {[%emt 0:00:06]} 1-0

[Event "ESP-chT 1st Division 2020"]
[Site "Padron"]
[Date "2020.10.03"]
[Round "1.24"]
[White "San Juan Morigosa, Isaura"]
[Black "Dorado Meijide, Andrea"]
[Result "0-1"]
[ECO "E32"]
[WhiteElo "1766"]
[BlackElo "1779"]
[Annotator "NA"]
[PlyCount "90"]
[EventDate "2020.10.01"]
[EventType "team-tourn"]
[EventCountry "ESP"]
[SourceTitle "playchess.com"]
[Source "ChessBase"]
[SourceQuality "1"]
[TimeControl "5400+30"]

1. d4 {[%emt 0:00:00]} e6 {[%emt 0:00:00]} 2. c4 {[%emt 0:00:23]} Bb4+ {[%emt 0:00:00]} 3. Nc3 {[%emt 0:01:00]} Nf6 {[%emt 0:00:30]} 4. Qc2 {[%emt 0:00:08]} O-O {[%emt 0:02:09]} 5. a3 {[%emt 0:04:20]} Bxc3+ {[%emt 0:01:21]} 6. bxc3 {[%emt 0:01:28]} d6 {[%emt 0:02:46]} 7. Bg5 {[%emt 0:01:03]} Re8 {[%emt 0:05:13]} 8. e3 {[%emt 0:00:42]} e5 {[%emt 0:03:03]} 9. Bd3 {[%emt 0:02:43]} h6 {[%emt 0:03:26]} 10. Bxf6 {[%emt 0:05:03]} Qxf6 {[%emt 0:00:15]} 11. Ne2 {[%emt 0:00:05]} Qh4 {[%emt 0:25:08]} 12. Ng3 {[%emt 0:01:14]} exd4 {[%emt 0:00:42]} 13. cxd4 {[%emt 0:00:17]} Qxd4 {[%emt 0:00:33]} 14. O-O {[%emt 0:00:05]} Qe5 {[%emt 0:01:09]} 15. Rab1 {[%emt 0:00:29]} Nc6 {[%emt 0:00:23]} 16. Rb5 {[%emt 0:00:30]} Qe7 {[%emt 0:02:22]} 17. Bh7+ {[%emt 0:11:34]} Kh8 {[%emt 0:06:34]} 18. Be4 {[%emt 0:00:07]} a6 {[%emt 0:05:18]} 19. Rh5 {[%emt 0:01:18]} Bg4 {[%emt 0:01:47]} 20. Bxc6 {[%emt 0:08:19]} bxc6 {[%emt 0:00:36]} 21. Ra5 {[%emt 0:00:27]} c5 {[%emt 0:04:36]} 22. Rb1 {[%emt 0:00:37]} Bd7 {[%emt 0:01:02]} 23. Qb2 {[%emt 0:01:09]} Bc6 {[%emt 0:05:27]} 24. e4 {[%emt 0:02:21]} Qg5 {[%emt 0:04:21]} 25. f3 {[%emt 0:05:47]} Reb8 {[%emt 0:03:00]} 26. Qxb8+ {[%emt 0:08:34]} Rxb8 {[%emt 0:00:05]} 27. Rxb8+ {[%emt 0:00:09]} Kh7 {[%emt 0:00:02]} 28. Rxa6 {[%emt 0:01:35]} Qc1+ {[%emt 0:00:28]} 29. Kf2 {[%emt 0:02:22]} Bd7 {[%emt 0:00:37]} 30. Raa8 {[%emt 0:24:35]} Qd2+ {[%emt 0:02:32]} 31. Ne2 {[%emt 0:00:35]} Be6 {[%emt 0:00:10]} 32. Rb1 {[%emt 0:07:41]} Bxc4 {[%emt 0:00:42]} 33. Re1 {[%emt 0:00:10]} Bxe2 {[%emt 0:02:01]} 34. Rxe2 {[%emt 0:00:07]} Qd4+ {[%emt 0:00:11]} 35. Kg3 {[%emt 0:06:53]} c4 {[%emt 0:00:37]} 36. Rb8 {[%emt 0:02:23]} c3 {[%emt 0:01:22]} 37. Rb1 {[%emt 0:00:16]} Qd3 {[%emt 0:01:29]} 38. Ree1 {[%emt 0:00:09]} c6 {[%emt 0:00:48]} 39. Ra1 {[%emt 0:00:42]} d5 {[%emt 0:00:34]} 40. a4 {[%emt 0:00:42]} d4 {[%emt 0:00:08]} 41. a5 {[%emt 0:00:04]} Qa6 {[%emt 0:00:34]} 42. Rec1 {[%emt 0:01:58]} c5 {[%emt 0:00:59]} 43. Kf2 {[%emt 0:00:11]} c4 {[%emt 0:06:27]} 44. Rcb1 {[%emt 0:00:47]} c2 {[%emt 0:00:29]} 45. Rb6 {[%emt 0:00:06]} Qxa5 {[%emt 0:00:13]} 0-1

[Event "ESP-chT 1st Division 2020"]
[Site "Padron"]
[Date "2020.10.04"]
[Round "2.1"]
[White "Adla, Diego"]
[Black "Pap, Misa"]
[Result "1-0"]
[ECO "A25"]
[WhiteElo "2438"]
[BlackElo "2447"]
[Annotator "ChessBase"]
[PlyCount "71"]
[EventDate "2020.10.01"]
[EventType "team-tourn"]
[EventCountry "ESP"]
[SourceTitle "playchess.com"]
[Source "ChessBase"]
[SourceQuality "1"]
[TimeControl "5400+30"]

1. c4 {[%emt 0:00:00]} e5 {[%emt 0:00:00]} 2. Nc3 {[%emt 0:00:00]} Nc6 {[%emt 0:00:17]} 3. g3 {[%emt 0:00:00]} g6 {[%emt 0:00:08]} 4. Bg2 {[%emt 0:00:00]} Bg7 {[%emt 0:00:05]} 5. e3 {[%emt 0:00:02]} d6 {[%emt 0:02:07]} 6. Nge2 {[%emt 0:00:08]} h5 {[%emt 0:01:37]} 7. h4 {[%emt 0:04:22]} Bg4 {[%emt 0:00:17]} 8. d3 {[%emt 0:00:09]} Qd7 {[%emt 0:06:37]} 9. Rb1 {[%emt 0:03:15]} a5 {[%emt 0:00:24]} 10. Nd5 {[%emt 0:03:02]} Ra7 {[%emt 0:05:03]} 11. f3 {[%emt 0:09:18]} Be6 {[%emt 0:09:12]} 12. e4 {[%emt 0:00:06]} Ra6 {[%emt 0:15:14]} 13. Be3 {[%emt 0:01:19]} Nd4 {[%emt 0:00:22]} 14. Bxd4 {[%emt 0:03:45]} exd4 {[%emt 0:00:04]} 15. Nef4 {[%emt 0:00:17]} Be5 {[%emt 0:01:42]} 16. Nxe6 {[%emt 0:05:31]} Bxg3+ {[%emt 0:01:05]} 17. Ke2 {[%emt 0:00:11]} fxe6 {[%emt 0:00:40]} 18. Bh3 {[%emt 0:00:08]} Kf7 {[%emt 0:11:00]} 19. Qg1 {[%emt 0:10:51]} Be5 {[%emt 0:00:08]} 20. f4 {[%emt 0:08:35]} Bg7 {[%emt 0:00:45]} 21. Rh2 {[%emt 0:12:48]} c6 {[%emt 0:11:26]} 22. Rg2 {[%emt 0:02:36]} cxd5 {[%emt 0:00:44]} 23. cxd5 {[%emt 0:00:21]} Kf8 {[%emt 0:03:51]} 24. Rxg6 {[%emt 0:05:42]} Nf6 {[%emt 0:00:37]} 25. Bxe6 {[%emt 0:02:10]} Qe7 {[%emt 0:00:04]} 26. Rc1 {[%emt 0:01:32]} Ra8 {[%emt 0:00:01]} 27. Qg5 {[%emt 0:00:51]} Rh7 {[%emt 0:13:10]} 28. Rg1 {[%emt 0:07:14]} Ng4 {[%emt 0:00:11]} 29. Qf5+ {[%emt 0:01:05]} Ke8 {[%emt 0:00:36]} 30. R6xg4 {[%emt 0:01:05]} hxg4 {[%emt 0:01:06]} 31. Qxh7 {[%emt 0:00:16]} Qc7 {[%emt 0:01:47]} 32. Kd2 {[%emt 0:01:36]} a4 {[%emt 0:00:34]} 33. Rxg4 {[%emt 0:05:18]} Qa5+ {[%emt 0:00:18]} 34. Kd1 {[%emt 0:00:13]} Qb5 {[%emt 0:00:10]} 35. Qg8+ {[%emt 0:01:06]} Bf8 {[%emt 0:00:04]} 36. Qf7+ {[%emt 0:00:13]} 1-0

[Event "ESP-chT 1st Division 2020"]
[Site "Padron"]
[Date "2020.10.04"]
[Round "2.2"]
[White "Pile, Richard"]
[Black "Glavina, Pablo"]
[Result "1-0"]
[ECO "C49"]
[WhiteElo "2450"]
[BlackElo "2412"]
[Annotator "ChessBase"]
[PlyCount "101"]
[EventDate "2020.10.01"]
[EventType "team-tourn"]
[EventCountry "ESP"]
[SourceTitle "playchess.com"]
[Source "ChessBase"]
[SourceQuality "1"]
[TimeControl "5400+30"]

1. e4 {[%emt 0:00:00]} e5 {[%emt 0:00:00]} 2. Nf3 {[%emt 0:00:00]} Nc6 {[%emt 0:00:00]} 3. Nc3 {[%emt 0:00:12]} Nf6 {[%emt 0:00:00]} 4. Bb5 {[%emt 0:00:07]} Bb4 {[%emt 0:02:38]} 5. O-O {[%emt 0:00:16]} O-O {[%emt 0:00:06]} 6. d3 {[%emt 0:00:52]} Bxc3 {[%emt 0:00:07]} 7. bxc3 {[%emt 0:00:07]} d6 {[%emt 0:00:34]} 8. Bg5 {[%emt 0:02:03]} Qe7 {[%emt 0:01:13]} 9. Nd2 {[%emt 0:27:04]} h6 {[%emt 0:01:19]} 10. Bxf6 {[%emt 0:04:45]} Qxf6 {[%emt 0:00:27]} 11. Bc4 {[%emt 0:00:48]} Na5 {[%emt 0:05:27]} 12. Bb3 {[%emt 0:01:16]} Qg6 {[%emt 0:01:28]} 13. Qe2 {[%emt 0:00:28]} Nxb3 {[%emt 0:00:41]} 14. axb3 {[%emt 0:00:16]} f5 {[%emt 0:00:11]} 15. f3 {[%emt 0:00:44]} Be6 {[%emt 0:05:31]} 16. d4 {[%emt 0:11:17]} fxe4 {[%emt 0:02:37]} 17. fxe4 {[%emt 0:00:17]} a6 {[%emt 0:04:38]} 18. dxe5 {[%emt 0:01:43]} dxe5 {[%emt 0:00:10]} 19. Qe3 {[%emt 0:00:31]} Rae8 {[%emt 0:09:18]} 20. Nf3 {[%emt 0:07:54]} Bg4 {[%emt 0:01:30]} 21. Nd2 {[%emt 0:00:15]} Be6 {[%emt 0:00:10]} 22. Rae1 {[%emt 0:01:21]} b6 {[%emt 0:04:29]} 23. c4 {[%emt 0:00:37]} Rd8 {[%emt 0:05:09]} 24. Rxf8+ {[%emt 0:08:16]} Rxf8 {[%emt 0:00:20]} 25. Qc3 {[%emt 0:00:09]} Rd8 {[%emt 0:10:09]} 26. Nf3 {[%emt 0:02:39]} Bg4 {[%emt 0:01:19]} 27. Nxe5 {[%emt 0:00:40]} Qf6 {[%emt 0:00:05]} 28. Qa1 {[%emt 0:00:07]} Bh5 {[%emt 0:01:30]} 29. Nd3 {[%emt 0:00:33]} Qxa1 {[%emt 0:00:39]} 30. Rxa1 {[%emt 0:00:06]} Bg6 {[%emt 0:00:06]} 31. Nf2 {[%emt 0:07:04]} Rd2 {[%emt 0:00:25]} 32. Rc1 {[%emt 0:01:55]} Rd4 {[%emt 0:08:06]} 33. Ra1 {[%emt 0:03:22]} Rd2 {[%emt 0:01:04]} 34. Ra2 {[%emt 0:00:52]} a5 {[%emt 0:02:45]} 35. Kf1 {[%emt 0:00:54]} a4 {[%emt 0:00:06]} 36. bxa4 {[%emt 0:08:03]} Bf7 {[%emt 0:01:03]} 37. Ke1 {[%emt 0:00:12]} Rd4 {[%emt 0:00:04]} 38. a5 {[%emt 0:01:27]} bxa5 {[%emt 0:05:13]} 39. Rxa5 {[%emt 0:00:05]} Rxc4 {[%emt 0:00:08]} 40. Ra8+ {[%emt 0:00:23]} Kh7 {[%emt 0:00:10]} 41. Kd2 {[%emt 0:00:15]} Rd4+ {[%emt 0:04:30]} 42. Ke3 {[%emt 0:00:35]} Rc4 {[%emt 0:00:05]} 43. Kd3 {[%emt 0:00:10]} Rc6 {[%emt 0:00:03]} 44. Ng4 {[%emt 0:01:28]} Rd6+ {[%emt 0:02:49]} 45. Ke3 {[%emt 0:00:27]} Bh5 {[%emt 0:01:21]} 46. Ne5 {[%emt 0:02:39]} Bd1 {[%emt 0:01:34]} 47. c4 {[%emt 0:01:13]} Re6 {[%emt 0:01:05]} 48. Nd7 {[%emt 0:01:29]} Rc6 {[%emt 0:01:01]} 49. c5 {[%emt 0:00:14]} g5 {[%emt 0:01:51]} 50. Kd4 {[%emt 0:00:17]} Bb3 {[%emt 0:00:15]} 51. Ra7 {[%emt 0:00:20]} 1-0